bitfinex/quotes_BTCUSD_20250902
["timestamp","ask_amount","ask_price","bid_price","bid_amount"]
[1756845104531,3.99318777,111440.0,111430.0,4e-05]
[1756845104937,3.99618777,111440.0,111430.0,4e-05]
[1756845105138,3.99418777,111440.0,111430.0,4e-05]
[1756845105333,3.99718777,111440.0,111430.0,4e-05]
[1756845105776,3.98313764,111440.0,111430.0,4e-05]
[1756845105975,3.95081843,111440.0,111430.0,4e-05]
[1756845106389,3.9831387,111440.0,111430.0,4e-05]
[1756845106957,3.98313941,111440.0,111430.0,4e-05]
[1756845107165,3.98309941,111440.0,111430.0,4e-05]
[1756845107567,3.95077914,111440.0,111430.0,4e-05]
[1756845108690,3.79505914,111440.0,111430.0,4e-05]
[1756845108898,4.66483051,111440.0,111430.0,4e-05]
[1756845109119,4.50911051,111440.0,111430.0,4e-05]
[1756845109340,4.66483051,111440.0,111430.0,4e-05]
[1756845111439,4.61643342,111440.0,111430.0,4e-05]
[1756845111641,4.66488408,111440.0,111430.0,4e-05]
[1756845111837,4.66488438,111440.0,111430.0,4e-05]
[1756845112059,4.61643342,111440.0,111430.0,4e-05]
[1756845112239,4.66487568,111440.0,111430.0,4e-05]
[1756845112589,4.61643342,111440.0,111430.0,4e-05]
[1756845112942,4.61640401,111440.0,111430.0,4e-05]
[1756845113166,0.36093882,111400.0,111390.0,0.005]
[1756845113362,2.05777181,111400.0,111390.0,0.005]
[1756845113705,2.05777181,111400.0,111390.0,0.00711]
[1756845113706,2.08731367,111400.0,111390.0,0.00711]
[1756845113840,2.11431332,111400.0,111390.0,0.00711]
[1756845114086,1.95863332,111400.0,111390.0,0.00711]
[1756845114294,2.11531332,111400.0,111390.0,0.00711]
[1756845114494,1.95963332,111400.0,111390.0,0.00725072]
[1756845114696,0.89511372,111400.0,111390.0,0.00725072]
[1756845114901,2.11531332,111400.0,111390.0,0.00825072]
[1756845115331,2.61531332,111400.0,111390.0,0.00825072]
[1756845115944,2.70722931,111400.0,111390.0,0.00825072]
[1756845116184,2.61531332,111400.0,111390.0,0.00825072]
[1756845116386,2.61531332,111400.0,111360.0,1e-08]
[1756845116387,0.54052039,111370.0,111360.0,1e-08]
[1756845116519,0.54055265,111350.0,111340.0,0.0032]
[1756845116724,2.03109186,111350.0,111340.0,0.0032]
[1756845116969,1.8865838,111350.0,111340.0,0.00531]
[1756845117168,2.06643918,111350.0,111340.0,0.00531]
[1756845117368,0.17962996,111340.0,111330.0,0.00339999]
[1756845117594,1.57764033,111340.0,111330.0,0.00339999]
[1756845117854,1.57483362,111340.0,111330.0,0.00550999]
[1756845118226,1.98156682,111340.0,111330.0,1e-08]
[1756845118807,1.69984757,111340.0,111330.0,1e-08]
[1756845119216,2.10658077,111340.0,111330.0,1e-08]
[1756845119782,2.10758077,111340.0,111330.0,1e-08]
[1756845120296,2.14775873,111340.0,111330.0,1e-08]
[1756845120594,0.36518593,111340.0,111330.0,0.00233001]
[1756845120801,1.74102553,111340.0,111330.0,0.00233001]
[1756845121003,1.74002553,111340.0,111330.0,1e-08]
[1756845121212,1.74002553,111340.0,111330.0,0.00333001]
[1756845121420,1.74002553,111340.0,111330.0,0.00100001]
[1756845121649,1.58438553,111340.0,111330.0,0.00333001]
[1756845121854,1.55128757,111340.0,111330.0,0.00333001]
[1756845122057,1.53192351,111340.0,111330.0,0.00333001]
[1756845122260,1.08501235,111340.0,111330.0,0.00333001]
[1756845122467,1.08501235,111340.0,111330.0,0.1829761]
[1756845122670,0.99309636,111340.0,111330.0,0.1829761]
[1756845122877,0.99309636,111340.0,111330.0,0.00333001]
[1756845123132,0.99309636,111340.0,111330.0,0.18357712]
[1756845123133,0.8134664,111340.0,111330.0,0.18357712]
[1756845123363,0.4067332,111340.0,111330.0,0.2045061]
[1756845123573,0.58636316,111340.0,111330.0,0.2045061]
[1756845123784,0.99309636,111340.0,111330.0,0.02486001]
[1756845123988,0.99309636,111340.0,111330.0,0.02646103]
[1756845124203,0.99309636,111340.0,111330.0,0.02486001]
[1756845124409,0.17962996,111340.0,111330.0,0.20610712]
[1756845124629,0.18321583,111350.0,111330.0,0.2075061]
[1756845124841,0.4067332,111340.0,111330.0,0.2051761]
[1756845125049,0.8134664,111340.0,111330.0,0.2051761]
[1756845125485,0.99309636,111340.0,111330.0,0.2075061]
[1756845125698,0.58636316,111340.0,111330.0,0.2075061]
[1756845125913,0.58636316,111340.0,111330.0,0.3631461]
[1756845126116,0.58636316,111340.0,111330.0,0.3651461]
[1756845126521,0.4067332,111340.0,111330.0,0.3651461]
[1756845126769,0.17961863,111350.0,111330.0,0.3651461]
[1756845126983,0.99309636,111340.0,111330.0,0.2071761]
[1756845127189,0.99309636,111340.0,111330.0,0.3628161]
[1756845127396,0.17962996,111340.0,111330.0,0.3628161]
[1756845127605,0.58636316,111340.0,111330.0,0.3651461]
[1756845127806,0.4067332,111340.0,111330.0,0.3651461]
[1756845128520,0.4067332,111340.0,111330.0,0.3631461]
[1756845128521,0.58636316,111340.0,111330.0,0.3631461]
[1756845128730,0.58636316,111340.0,111330.0,0.00633001]
[1756845128938,0.99309636,111340.0,111330.0,0.16193001]
[1756845129138,0.99309636,111340.0,111330.0,0.00633001]
[1756845129258,1.08501235,111340.0,111330.0,0.00533001]
[1756845129478,1.08501235,111340.0,111330.0,0.00733001]
[1756845130308,1.08501235,111340.0,111330.0,0.00500001]
[1756845130558,1.52731829,111340.0,111330.0,0.005]
[1756845130796,1.71576073,111340.0,111330.0,0.005]
[1756845131205,2.05576073,111340.0,111330.0,0.005]
[1756845131576,0.17964609,111330.0,111320.0,0.0004]
[1756845131757,1.65016865,111330.0,111320.0,0.0004]
[1756845131956,1.27313122,111330.0,111320.0,0.0004]
[1756845132164,1.27620122,111330.0,111320.0,0.0004]
[1756845132786,1.27667006,111330.0,111320.0,0.0004]
[1756845133413,0.58641157,111310.0,111300.0,0.06738753]
[1756845133828,0.58641157,111310.0,111300.0,0.24708204]
[1756845134242,0.58641157,111310.0,111300.0,0.06738753]
[1756845134444,0.17967837,111310.0,111300.0,0.24708204]
[1756845134665,0.58641157,111310.0,111300.0,0.24708204]
[1756845134865,0.58641157,111310.0,111300.0,0.25008204]
[1756845135071,0.58641157,111310.0,111300.0,0.25208204]
[1756845136646,0.4067332,111310.0,111300.0,0.25208204]
[1756845136869,0.67831198,111320.0,111310.0,0.17967837]
[1756845137073,0.17966223,111320.0,111310.0,0.1812804]
[1756845137276,0.58639543,111320.0,111310.0,0.1812804]
[1756845137479,0.99312863,111320.0,111310.0,0.1812804]
[1756845138089,0.99312863,111320.0,111310.0,0.1822804]
[1756845138346,0.99312863,111320.0,111310.0,0.1832804]
[1756845138563,0.99312863,111320.0,111310.0,0.002]
[1756845138767,0.17966223,111320.0,111310.0,0.1576]
[1756845138971,1.01522427,111320.0,111310.0,0.1576]
[1756845139175,1.01748705,111320.0,111310.0,0.15756]
[1756845139552,1.01748705,111320.0,111310.0,0.33723837]
[1756845139813,1.01241705,111320.0,111310.0,0.33723837]
[1756845139988,1.01241705,111320.0,111310.0,0.15756]
[1756845140190,1.01241705,111320.0,111310.0,0.33723837]
[1756845140420,1.02917443,111320.0,111310.0,0.33723837]
[1756845141080,1.01241705,111320.0,111310.0,0.33723837]
[1756845141294,1.10940304,111320.0,111310.0,0.002]
[1756845141504,1.12616991,111320.0,111310.0,0.002]
[1756845141717,0.21571752,111320.0,111310.0,0.18167837]
[1756845141931,0.21571752,111320.0,111310.0,0.1832804]
[1756845142134,0.62245072,111320.0,111310.0,0.18167837]
[1756845142336,0.44278849,111320.0,111310.0,0.18167837]
[1756845142510,0.62245072,111320.0,111310.0,0.18167837]
[1756845142725,0.44278849,111320.0,111310.0,0.18167837]
[1756845142929,0.60568385,111320.0,111310.0,0.18167837]
[1756845143134,0.42602162,111320.0,111310.0,0.18167837]
[1756845143343,0.44280324,111320.0,111310.0,0.18167837]
[1756845143557,0.42602162,111320.0,111310.0,0.18167837]
[1756845144164,0.60568385,111320.0,111310.0,0.18167837]
[1756845144397,1.01241705,111320.0,111310.0,0.18167837]
[1756845144992,1.01241705,111320.0,111310.0,0.33723837]
[1756845145407,1.0365125,111320.0,111310.0,0.33723837]
[1756845145836,0.85685027,111320.0,111310.0,0.33723837]
[1756845146426,0.87366588,111320.0,111310.0,0.33723837]
[1756845146803,1.05332811,111320.0,111310.0,0.33723837]
[1756845147405,0.87366588,111320.0,111310.0,0.33723837]
[1756845147806,1.05332811,111320.0,111310.0,0.18167837]
[1756845148049,1.08561528,111320.0,111310.0,0.33719837]
[1756845148554,1.08868528,111320.0,111310.0,0.33719837]
[1756845148928,0.27214888,111320.0,111310.0,0.33719837]
[1756845149126,1.08868528,111320.0,111310.0,0.33719837]
[1756845150251,1.05639811,111320.0,111310.0,0.33719837]
[1756845150453,1.05839811,111320.0,111310.0,0.002]
[1756845150650,1.5570473,111320.0,111310.0,0.15752]
[1756845150893,1.80820664,111320.0,111310.0,0.002]
[1756845151065,1.78411119,111320.0,111310.0,0.002]
[1756845151273,1.83254195,111320.0,111310.0,0.002]
[1756845151472,1.01998248,111320.0,111310.0,0.002]
[1756845152289,0.97155172,111320.0,111310.0,0.002]
[1756845152887,0.97155553,111320.0,111310.0,0.002]
[1756845153346,1.01998629,111320.0,111310.0,0.002]
[1756845153961,0.99400677,111320.0,111310.0,0.002]
[1756845154353,1.33400677,111320.0,111310.0,0.002]
[1756845154570,1.33400677,111320.0,111310.0,0.001]
[1756845154883,0.17969451,111300.0,111290.0,0.39895066]
[1756845155062,0.72557136,111300.0,111290.0,0.21924]
[1756845155288,0.72783364,111300.0,111290.0,0.21924]
[1756845155490,0.72783364,111300.0,111290.0,0.39895066]
[1756845155703,0.72783364,111300.0,111290.0,0.21924]
[1756845156271,0.72783364,111300.0,111290.0,0.0034]
[1756845157222,0.72783364,111300.0,111290.0,0.0054]
[1756845158139,1.15230008,111300.0,111290.0,0.0054]
[1756845159177,1.19368714,111300.0,111290.0,0.0054]
[1756845159377,1.16138769,111300.0,111290.0,0.0054]
[1756845159848,1.16139356,111300.0,111290.0,0.0054]
[1756845160030,1.19369301,111300.0,111290.0,0.0054]
[1756845160447,1.34921301,111300.0,111290.0,0.0054]
[1756845160586,1.19369301,111300.0,111290.0,0.0054]
[1756845160786,1.34921301,111300.0,111290.0,0.0054]
[1756845161801,0.94157288,111300.0,111290.0,0.0054]
[1756845162237,1.34921301,111300.0,111290.0,0.0054]
[1756845162789,1.19369301,111300.0,111290.0,0.0054]
[1756845163076,1.34921301,111300.0,111290.0,0.0054]
[1756845163244,1.31691356,111300.0,111290.0,0.0054]
[1756845163666,1.30008138,111300.0,111290.0,0.0054]
[1756845164088,0.32928112,111300.0,111290.0,0.0054]
[1756845164288,0.135429,111300.0,111290.0,0.1867137]
[1756845164487,0.72557136,111300.0,111290.0,0.18511066]
[1756845164715,0.72276364,111300.0,111290.0,0.18511066]
[1756845164909,0.69863419,111300.0,111290.0,0.18511066]
[1756845165108,0.29099406,111300.0,111290.0,0.18511066]
[1756845165310,0.69863419,111300.0,111290.0,0.18511066]
[1756845165485,0.70185419,111300.0,111290.0,0.18511066]
[1756845165837,0.69863419,111300.0,111290.0,0.18511066]
[1756845167156,0.70398419,111300.0,111290.0,0.0054]
[1756845167365,0.70398419,111300.0,111290.0,0.34059066]
[1756845167581,0.70398419,111300.0,111290.0,0.16088]
[1756845167789,0.70398419,111300.0,111290.0,0.34059066]
[1756845167989,0.70185419,111300.0,111290.0,0.34059066]
[1756845168200,0.29634406,111300.0,111290.0,0.34059066]
[1756845168475,0.70398419,111300.0,111290.0,0.34059066]
[1756845169114,0.70185419,111300.0,111290.0,0.34059066]
[1756845169326,0.01938356,111300.0,111290.0,0.34059066]
[1756845169543,0.64383127,111320.0,111300.0,0.17969451]
[1756845169752,0.74287255,111320.0,111310.0,0.33515837]
[1756845169971,0.70394887,111320.0,111310.0,0.33515837]
[1756845170812,0.69859887,111320.0,111310.0,0.33515837]
[1756845171081,0.00961196,111330.0,111320.0,0.17966223]
[1756845171295,0.59689886,111330.0,111320.0,0.18126375]
[1756845171722,0.60011886,111330.0,111320.0,0.18126375]
[1756845172379,0.60224886,111330.0,111320.0,0.33674375]
[1756845172593,0.59310574,111330.0,111320.0,0.33914223]
[1756845173011,0.59310574,111330.0,111320.0,0.34214223]
[1756845174503,0.41132897,111330.0,111320.0,0.34214223]
[1756845174767,0.59097506,111330.0,111320.0,0.34214223]
[1756845175001,0.60191505,111330.0,111320.0,0.34214223]
[1756845175954,0.60191505,111330.0,111320.0,0.007]
[1756845176169,0.60191505,111330.0,111320.0,0.16248]
[1756845176385,0.01462883,111330.0,111320.0,0.34214223]
[1756845176599,0.00046884,111330.0,111320.0,0.34214223]
[1756845177899,0.00046884,111330.0,111320.0,1.58169835]
[1756845178126,0.00046884,111330.0,111320.0,1.60263717]
[1756845179783,0.00046884,111330.0,111320.0,1.44715717]
[1756845179985,0.00046884,111330.0,111320.0,1.60259717]
[1756845181101,0.00046884,111330.0,111320.0,1.44715717]
[1756845181310,0.00046884,111330.0,111320.0,1.60259717]
[1756845181506,0.00046884,111330.0,111320.0,1.85506331]
[1756845183411,0.00046884,111330.0,111320.0,1.19495704]
[1756845183630,0.00046884,111330.0,111320.0,1.85506331]
[1756845185756,0.00046884,111330.0,111320.0,1.85502331]
[1756845186238,0.00046884,111330.0,111320.0,1.19491704]
[1756845186490,0.00581884,111330.0,111320.0,1.08206223]
[1756845186707,0.00581884,111330.0,111320.0,0.92666223]
[1756845186916,0.00581884,111330.0,111320.0,1.08206223]
[1756845187131,0.00046884,111330.0,111320.0,1.08206223]
[1756845187833,0.00046884,111330.0,111320.0,1.85502331]
[1756845188692,0.00046884,111330.0,111320.0,1.90502331]
[1756845189535,0.00046884,111330.0,111320.0,1.95502331]
[1756845189990,0.00046884,111330.0,111320.0,1.79962331]
[1756845190189,0.00046884,111330.0,111320.0,1.95502331]
[1756845191838,0.00314,111360.0,111350.0,0.17961383]
[1756845192040,0.91323415,111370.0,111360.0,0.1795977]
[1756845192400,0.93904415,111370.0,111360.0,0.1795977]
[1756845192702,0.1795977,111360.0,111350.0,0.17966068]
[1756845192914,0.86865397,111360.0,111350.0,0.33506068]
[1756845193517,0.86865397,111360.0,111350.0,0.17966068]
[1756845193818,0.86865397,111360.0,111350.0,0.33506068]
[1756845194870,0.86965397,111360.0,111350.0,0.33506068]
[1756845195684,0.2095477,111360.0,111350.0,0.33506068]
[1756845195898,0.69005627,111360.0,111350.0,0.33506068]
[1756845196110,0.86965397,111360.0,111350.0,0.33506068]
[1756845196334,0.69005627,111360.0,111350.0,0.33506068]
[1756845196884,0.68905627,111360.0,111350.0,0.33506068]
[1756845198275,0.68905627,111360.0,111350.0,0.33606068]
[1756845198681,0.86865397,111360.0,111350.0,0.33606068]
[1756845199009,0.86865397,111360.0,111350.0,0.18066068]
[1756845199216,0.86865397,111360.0,111350.0,0.33602068]
[1756845199831,0.86865397,111360.0,111350.0,0.18066068]
[1756845199976,0.86865397,111360.0,111350.0,0.33602068]
[1756845200182,0.86865397,111360.0,111350.0,0.00104685]
[1756845200416,0.86865397,111360.0,111350.0,0.15640685]
[1756845200644,0.96056996,111360.0,111350.0,0.33602068]
[1756845201580,0.30046369,111360.0,111350.0,0.33602068]
[1756845201797,0.70770186,111360.0,111350.0,0.33602068]
[1756845202221,0.70770186,111360.0,111350.0,0.15640685]
[1756845202442,1.14544976,111360.0,111350.0,0.15640685]
[1756845202660,1.16480773,111360.0,111350.0,0.15640685]
[1756845203632,1.16480773,111360.0,111350.0,0.33602068]
[1756845203633,0.75756956,111360.0,111350.0,0.33602068]
[1756845203852,0.29615166,111360.0,111350.0,0.33602068]
[1756845204074,0.70338983,111360.0,111350.0,0.33602068]
[1756845205413,0.52379213,111360.0,111350.0,0.33602068]
[1756845205630,0.02249797,111360.0,111350.0,0.33602068]
[1756845206047,0.02463797,111360.0,111350.0,0.33602068]
[1756845208506,0.43187614,111360.0,111350.0,0.33602068]
[1756845209304,0.43187614,111360.0,111350.0,0.18066068]
[1756845209480,0.61147384,111360.0,111350.0,0.33598068]
[1756845210174,0.43187614,111360.0,111350.0,0.33598068]
[1756845212808,0.02463797,111360.0,111350.0,0.33598068]
[1756845213645,0.43175616,111360.0,111350.0,0.33598068]
[1756845214608,0.61135386,111360.0,111350.0,0.33598068]
[1756845214805,0.43175616,111360.0,111350.0,0.33598068]
[1756845218234,0.43175616,111360.0,111350.0,0.33594068]
[1756845219058,0.43175616,111360.0,111350.0,0.33094068]
[1756845221604,0.41239819,111360.0,111350.0,0.33094068]
[1756845222132,0.41009819,111370.0,111360.0,0.17958302]
[1756845222341,0.00298,111380.0,111370.0,0.17958157]
[1756845222555,0.02447212,111380.0,111370.0,0.33486157]
[1756845222771,0.43159031,111380.0,111370.0,0.17958157]
[1756845222986,0.41217819,111380.0,111370.0,0.33486157]
[1756845223622,0.41217819,111380.0,111370.0,0.33586157]
[1756845223833,0.00506,111380.0,111370.0,0.33586157]
[1756845224084,0.41217819,111380.0,111370.0,0.18058157]
[1756845224283,0.41217819,111380.0,111370.0,0.33582157]
[1756845224917,0.41217819,111380.0,111370.0,0.33682157]
[1756845225757,0.00506,111380.0,111370.0,0.33682157]
[1756845225981,0.41217819,111380.0,111370.0,0.33682157]
[1756845226797,0.18855563,111390.0,111380.0,0.17956545]
[1756845226995,0.19361563,111390.0,111380.0,0.17956545]
[1756845227207,0.60073382,111390.0,111380.0,0.17956545]
[1756845228063,0.01406589,111390.0,111380.0,0.17956545]
[1756845228292,0.61645407,111400.0,111380.0,0.18116395]
[1756845228518,0.59172752,111390.0,111380.0,0.18116395]
[1756845228726,0.59172752,111390.0,111380.0,0.33640395]
[1756845228941,0.59172752,111390.0,111380.0,0.33480545]
[1756845229645,0.59172752,111390.0,111380.0,0.33580545]
[1756845230712,0.41217819,111390.0,111380.0,0.33580545]
[1756845230920,0.59172752,111390.0,111380.0,0.33580545]
[1756845231336,0.59172752,111390.0,111380.0,0.33680545]
[1756845232282,0.41217819,111390.0,111380.0,0.33680545]
[1756845232836,0.59172752,111390.0,111380.0,0.33680545]
[1756845233571,0.00506,111390.0,111380.0,0.33680545]
[1756845233794,0.41217819,111390.0,111380.0,0.33680545]
[1756845233999,0.59172752,111390.0,111380.0,0.33680545]
[1756845235369,0.59172752,111390.0,111380.0,0.1572]
[1756845235811,0.59172752,111390.0,111380.0,0.1587985]
[1756845236369,0.59172752,111390.0,111380.0,0.33836395]
[1756845236567,0.59172752,111390.0,111380.0,0.33676545]
[1756845236798,0.18460933,111390.0,111380.0,0.33676545]
[1756845236962,0.59172752,111390.0,111380.0,0.33676545]
[1756845237842,0.59172752,111390.0,111380.0,0.1572]
[1756845238463,0.59172752,111390.0,111380.0,0.1587985]
[1756845239027,0.18460933,111390.0,111380.0,0.33836395]
[1756845239230,0.59172752,111390.0,111380.0,0.33676545]
[1756845239846,0.18460933,111390.0,111380.0,0.33676545]
[1756845240047,0.59172752,111390.0,111380.0,0.33676545]
[1756845240244,0.59172752,111390.0,111380.0,0.1572]
[1756845240465,0.59172752,111390.0,111380.0,0.1587985]
[1756845240671,0.59172752,111390.0,111380.0,0.33836395]
[1756845240871,0.59172752,111390.0,111380.0,0.33676545]
[1756845242294,0.59172752,111390.0,111380.0,0.18156545]
[1756845242508,0.59172752,111390.0,111380.0,0.15716]
[1756845242735,0.59172752,111390.0,111380.0,0.0035985]
[1756845242945,0.59172752,111390.0,111380.0,0.15716]
[1756845243552,0.59172752,111390.0,111380.0,0.1587585]
[1756845245014,0.59172752,111390.0,111380.0,0.15716]
[1756845245226,1.27643143,111390.0,111380.0,0.002]
[1756845245646,0.46219505,111390.0,111380.0,0.002]
[1756845245851,1.12127143,111390.0,111380.0,0.002]
[1756845246060,1.27643143,111390.0,111380.0,0.002]
[1756845246275,1.27643143,111390.0,111380.0,0.001]
[1756845246971,0.17956545,111380.0,111370.0,0.21848]
[1756845247226,1.00166754,111380.0,111370.0,0.06332]
[1756845247433,0.99886183,111380.0,111370.0,0.39802157]
[1756845247635,0.99886183,111380.0,111370.0,0.21844]
[1756845248828,0.99886183,111380.0,111370.0,0.21944]
[1756845249024,0.99886183,111380.0,111370.0,0.39902157]
[1756845249663,0.99886183,111380.0,111370.0,0.40002157]
[1756845250014,0.99886183,111380.0,111370.0,0.22044]
[1756845250220,0.99886183,111380.0,111370.0,0.40002157]
[1756845251024,0.00506,111380.0,111370.0,0.40002157]
[1756845251240,0.20972563,111390.0,111380.0,0.17956545]
[1756845251440,0.61892382,111390.0,111380.0,0.18116395]
[1756845251648,0.43729449,111390.0,111380.0,0.18116395]
[1756845252129,0.43411449,111390.0,111380.0,0.18116395]
[1756845252347,0.58983765,111400.0,111390.0,0.17954933]
[1756845252565,0.61890306,111400.0,111390.0,0.33466933]
[1756845253331,0.84648804,111400.0,111390.0,0.33466933]
[1756845253549,0.84648804,111400.0,111390.0,0.33471618]
[1756845254169,0.03225166,111400.0,111390.0,0.33471618]
[1756845254410,0.84440804,111400.0,111390.0,0.33471618]
[1756845254658,0.40811819,111400.0,111390.0,0.33471618]
[1756845254901,0.4372882,111410.0,111400.0,0.17953321]
[1756845255123,0.4393682,111410.0,111400.0,0.1811307]
[1756845256202,0.4393682,111410.0,111400.0,0.1821307]
[1756845256673,0.61888529,111410.0,111400.0,0.33661321]
[1756845258158,0.4393682,111410.0,111400.0,0.33661321]
[1756845258371,0.61888529,111410.0,111400.0,0.33661321]
[1756845259569,0.2117671,111410.0,111400.0,0.33661321]
[1756845259622,0.61888529,111410.0,111400.0,0.33661321]
[1756845259849,1.02600348,111410.0,111400.0,0.15708]
[1756845260026,1.02600348,111410.0,111400.0,0.33661321]
[1756845261590,1.02600348,111410.0,111400.0,0.15708]
[1756845262019,1.05651321,111410.0,111400.0,0.15708]
[1756845263018,0.24227683,111410.0,111400.0,0.33661321]
[1756845263234,1.02600348,111410.0,111400.0,0.15708]
[1756845263677,1.02600348,111410.0,111400.0,0.33661321]
[1756845263913,0.2117671,111410.0,111400.0,0.33661321]
[1756845264138,0.61888529,111410.0,111400.0,0.33661321]
[1756845266598,1.02600348,111410.0,111400.0,0.33661321]
[1756845266787,1.02600348,111410.0,111400.0,0.33657321]
[1756845268680,0.03225001,111410.0,111400.0,0.33657321]
[1756845268907,0.61888529,111410.0,111400.0,0.33657321]
[1756845269130,1.02600348,111410.0,111400.0,0.18153321]
[1756845269349,1.02600348,111410.0,111400.0,0.33657321]
[1756845271432,0.2117671,111410.0,111400.0,0.33657321]
[1756845271635,1.02600348,111410.0,111400.0,0.33657321]
[1756845272260,1.02600348,111410.0,111400.0,0.002]
[1756845272473,1.02600348,111410.0,111400.0,0.3381307]
[1756845272683,0.2117671,111410.0,111400.0,0.33653321]
[1756845272897,1.02600348,111410.0,111400.0,0.33653321]
[1756845273090,0.84648639,111410.0,111400.0,0.33653321]
[1756845273515,0.4393682,111410.0,111400.0,0.33653321]
[1756845273934,0.61888529,111410.0,111400.0,0.33653321]
[1756845274154,1.02600348,111410.0,111400.0,0.33653321]
[1756845274632,0.84648639,111410.0,111400.0,0.33653321]
[1756845274843,1.02600348,111410.0,111400.0,0.33653321]
[1756845275248,0.84648639,111410.0,111400.0,0.33653321]
[1756845275473,1.02600348,111410.0,111400.0,0.33653321]
[1756845275682,0.61861612,111410.0,111400.0,0.33653321]
[1756845275823,0.03017001,111410.0,111400.0,0.33653321]
[1756845276034,0.43383903,111410.0,111400.0,0.33653321]
[1756845276262,0.43701903,111410.0,111400.0,0.33653321]
[1756845276714,0.02699001,111410.0,111400.0,0.33653321]
[1756845276933,0.02699001,111410.0,111400.0,0.39981321]
[1756845277154,0.41002902,111420.0,111410.0,0.17951709]
[1756845277359,0.43909424,111420.0,111410.0,0.18111408]
[1756845277739,0.03224522,111420.0,111410.0,0.18111408]
[1756845277910,0.43909424,111420.0,111410.0,0.18111408]
[1756845278350,0.43909424,111420.0,111410.0,0.33451709]
[1756845280487,0.43909424,111420.0,111410.0,0.33551709]
[1756845281305,0.43909424,111420.0,111410.0,0.33547709]
[1756845281584,0.43909424,111420.0,111410.0,0.33647709]
[1756845281799,0.03224522,111420.0,111410.0,0.33647709]
[1756845282001,0.43909424,111420.0,111410.0,0.33647709]
[1756845282224,0.61859522,111420.0,111410.0,0.33647709]
[1756845282455,0.43909424,111420.0,111410.0,0.33647709]
[1756845283561,0.61859522,111420.0,111410.0,0.33647709]
[1756845283956,0.61859522,111420.0,111410.0,0.18151709]
[1756845284163,0.61859522,111420.0,111410.0,0.33647709]
[1756845285063,0.61859522,111420.0,111410.0,0.18151709]
[1756845285254,0.61859522,111420.0,111410.0,0.33647709]
[1756845286115,1.02544424,111420.0,111410.0,0.33647709]
[1756845286321,0.84594326,111420.0,111410.0,0.33647709]
[1756845286502,0.43909424,111420.0,111410.0,0.33647709]
[1756845286711,0.61859522,111420.0,111410.0,0.33647709]
[1756845287276,0.61859522,111420.0,111410.0,0.18151709]
[1756845287681,0.61859522,111420.0,111410.0,0.33647709]
[1756845288245,1.02544424,111420.0,111410.0,0.15696]
[1756845288604,1.02544424,111420.0,111410.0,0.33647709]
[1756845288832,1.02544424,111420.0,111410.0,0.15696]
[1756845289437,1.02544424,111420.0,111410.0,0.33647709]
[1756845290957,0.61859522,111420.0,111410.0,0.33647709]
[1756845291374,1.02544424,111420.0,111410.0,0.002]
[1756845291609,1.02544424,111420.0,111410.0,0.15692]
[1756845292211,1.02544424,111420.0,111410.0,0.33643709]
[1756845293625,1.02544424,111420.0,111410.0,0.002]
[1756845293831,1.02544424,111420.0,111410.0,0.15692]
[1756845294038,1.02544424,111420.0,111410.0,0.33643709]
[1756845294477,1.11736023,111420.0,111410.0,0.002]
[1756845294657,1.11736023,111420.0,111410.0,0.15692]
[1756845295056,1.02544424,111420.0,111410.0,0.33643709]
[1756845295265,0.61859522,111420.0,111410.0,0.33643709]
[1756845296238,1.02544424,111420.0,111410.0,0.33643709]
[1756845297116,1.02544424,111420.0,111410.0,0.002]
[1756845297323,1.02544424,111420.0,111410.0,0.15692]
[1756845297568,1.02544424,111420.0,111410.0,0.002]
[1756845297770,1.02544424,111420.0,111410.0,0.15692]
[1756845298196,1.02544424,111420.0,111410.0,0.002]
[1756845298404,1.02544424,111420.0,111410.0,0.15692]
[1756845300313,1.02544424,111420.0,111410.0,0.002]
[1756845300450,1.02544424,111420.0,111410.0,0.15692]
[1756845301370,1.02544424,111420.0,111410.0,0.002]
[1756845301580,1.02544424,111420.0,111410.0,0.15692]
[1756845302653,0.2117462,111420.0,111410.0,0.15692]
[1756845302807,1.02544424,111420.0,111410.0,0.15692]
[1756845303015,1.11736023,111420.0,111410.0,0.15688]
[1756845304622,1.11736023,111420.0,111410.0,0.002]
[1756845304837,1.11736023,111420.0,111410.0,0.15688]
[1756845306348,1.11736023,111420.0,111410.0,0.002]
[1756845306756,1.30274996,111420.0,111410.0,0.002]
[1756845306965,1.32764996,111420.0,111410.0,0.002]
[1756845307347,1.19218258,111420.0,111410.0,0.002]
[1756845307548,1.34706258,111420.0,111410.0,0.002]
[1756845307797,0.17951709,111410.0,111400.0,0.21816]
[1756845307916,0.58917106,111410.0,111400.0,0.21816]
[1756845308124,0.59166611,111410.0,111400.0,0.39769321]
[1756845308747,0.6186549,111410.0,111400.0,0.39769321]
[1756845309660,0.6186549,111410.0,111400.0,0.39869321]
[1756845310090,0.02698879,111410.0,111400.0,0.39869321]
[1756845310268,0.43383781,111410.0,111400.0,0.39869321]
[1756845310501,0.02698879,111410.0,111400.0,0.39869321]
[1756845310959,0.41607777,111430.0,111400.0,0.39969321]
[1756845311152,0.51124376,111430.0,111420.0,0.17950098]
[1756845311363,0.69279863,111430.0,111420.0,0.33438098]
[1756845312194,0.71978385,111430.0,111420.0,0.33438098]
[1756845312402,0.72078385,111430.0,111420.0,0.33438098]
[1756845312613,0.13444996,111430.0,111420.0,0.33438098]
[1756845312820,0.54129898,111430.0,111420.0,0.33438098]
[1756845313003,0.72078385,111430.0,111420.0,0.33438098]
[1756845313760,0.31393483,111430.0,111420.0,0.33438098]
[1756845314318,0.72078385,111430.0,111420.0,0.33438098]
[1756845314693,0.71978385,111430.0,111420.0,0.33438098]
[1756845317687,0.71978385,111430.0,111420.0,0.33434098]
[1756845319108,0.54029898,111430.0,111420.0,0.33434098]
[1756845319321,0.02698522,111430.0,111420.0,0.33434098]
[1756845319523,0.43383424,111430.0,111420.0,0.33434098]
[1756845319935,0.40684902,111430.0,111420.0,0.17950098]
[1756845320146,0.41009902,111430.0,111420.0,0.18109746]
[1756845320356,0.18480487,111430.0,111420.0,0.33434098]
[1756845320550,0.59165389,111430.0,111420.0,0.17950098]
[1756845321097,0.41216902,111430.0,111420.0,0.33734098]
[1756845321302,0.00532,111430.0,111420.0,0.33734098]
[1756845321505,0.41216902,111430.0,111420.0,0.33934098]
[1756845321886,0.00325,111430.0,111420.0,0.33934098]
[1756845322039,0.41009902,111430.0,111420.0,0.33934098]
[1756845322234,0.60084482,111430.0,111420.0,0.33934098]
[1756845322467,0.59165389,111430.0,111420.0,0.33930098]
[1756845322861,0.59165389,111430.0,111420.0,0.18450098]
[1756845323061,0.59165389,111430.0,111420.0,0.33930098]
[1756845323448,0.00532,111430.0,111420.0,0.33930098]
[1756845323647,0.59165389,111430.0,111420.0,0.18450098]
[1756845323881,0.59165389,111430.0,111420.0,0.33930098]
[1756845325797,0.41216902,111430.0,111420.0,0.33930098]